[Event "Early-Titled-Tuesday-Blitz-May-28-2024"]
[Site "Chess.com"]
[Date "2024.05.28"]
[Round "7"]
[White "mangochessgo"]
[Black "scarabee43"]
[Result "0-1"]
[WhiteElo "2613"]
[BlackElo "2835"]
[TimeControl "180+1"]
[EndTime "9:16:37 PDT"]
[Termination "scarabee43 won by resignation"]

1. d4 {[%clk 0:03:00.9]} 1... Nf6 {[%clk 0:02:59.7]} 2. Nf3 {[%clk 0:03:01.7]}
2... d5 {[%clk 0:02:58]} 3. Bf4 {[%clk 0:03:01.7]} 3... Bf5 {[%clk 0:02:55.5]}
4. e3 {[%clk 0:03:01.6]} 4... e6 {[%clk 0:02:55]} 5. c4 {[%clk 0:03:00.8]} 5...
Nbd7 {[%clk 0:02:50.9]} 6. Qb3 {[%clk 0:02:58.6]} 6... dxc4 {[%clk 0:02:51.4]}
7. Bxc4 {[%clk 0:02:56.8]} 7... Nb6 {[%clk 0:02:50.4]} 8. Be2 {[%clk 0:02:53]}
8... Be7 {[%clk 0:02:42.7]} 9. Nc3 {[%clk 0:02:52.7]} 9... O-O {[%clk
0:02:43.1]} 10. O-O {[%clk 0:02:51.4]} 10... a5 {[%clk 0:02:38.9]} 11. a4 {[%clk
0:02:44.7]} 11... c6 {[%clk 0:02:36]} 12. Rfd1 {[%clk 0:02:40.8]} 12... Nfd5
{[%clk 0:02:34.2]} 13. Bg3 {[%clk 0:02:39]} 13... Nb4 {[%clk 0:02:32.4]} 14. e4
{[%clk 0:02:34.8]} 14... Bg6 {[%clk 0:02:25.1]} 15. Ne5 {[%clk 0:02:33.2]} 15...
Bd6 {[%clk 0:02:19.2]} 16. f3 {[%clk 0:02:24]} 16... Qe7 {[%clk 0:02:09.5]} 17.
Rac1 {[%clk 0:02:11.9]} 17... Rfd8 {[%clk 0:02:04.2]} 18. Bf1 {[%clk 0:02:02.5]}
18... Rac8 {[%clk 0:01:46.5]} 19. Ne2 {[%clk 0:01:47.5]} 19... c5 {[%clk
0:01:41.1]} 20. Nxg6 {[%clk 0:01:46.9]} 20... hxg6 {[%clk 0:01:38.3]} 21. Bxd6
{[%clk 0:01:46.9]} 21... Rxd6 {[%clk 0:01:38.1]} 22. dxc5 {[%clk 0:01:42.1]}
22... Rxd1 {[%clk 0:01:33.7]} 23. Qxd1 {[%clk 0:01:40.4]} 23... Rxc5 {[%clk
0:01:33.8]} 24. b3 {[%clk 0:01:29.2]} 24... Nd7 {[%clk 0:01:28.7]} 25. Nc3
{[%clk 0:01:20.3]} 25... Qg5 {[%clk 0:01:18]} 26. Ne2 {[%clk 0:00:51.8]} 26...
Qe3+ {[%clk 0:01:16.3]} 27. Kh1 {[%clk 0:00:52.2]} 27... Nd3 {[%clk 0:01:16.6]}
0-1

[Event "Early-Titled-Tuesday-Blitz-May-28-2024"]
[Site "Chess.com"]
[Date "2024.05.28"]
[Round "7"]
[White "campochess"]
[Black "gpsji27"]
[Result "0-1"]
[WhiteElo "2128"]
[BlackElo "2302"]
[TimeControl "180+1"]
[EndTime "9:16:52 PDT"]
[Termination "gpsji27 won by resignation"]

1. d4 {[%clk 0:02:58.6]} 1... d5 {[%clk 0:03:00]} 2. Bg5 {[%clk 0:02:56.8]} 2...
f6 {[%clk 0:03:00]} 3. Bd2 {[%clk 0:02:54]} 3... e5 {[%clk 0:02:56.9]} 4. dxe5
{[%clk 0:02:52.5]} 4... fxe5 {[%clk 0:02:57.8]} 5. e4 {[%clk 0:02:52.4]} 5...
Nf6 {[%clk 0:02:58.2]} 6. exd5 {[%clk 0:02:51.2]} 6... Bc5 {[%clk 0:02:50.9]} 7.
Nf3 {[%clk 0:02:40.4]} 7... Ng4 {[%clk 0:02:24.4]} 8. Bb5+ {[%clk 0:02:39.6]}
8... c6 {[%clk 0:02:23.2]} 9. dxc6 {[%clk 0:02:39.4]} 9... bxc6 {[%clk
0:02:24.1]} 10. O-O {[%clk 0:02:33.2]} 10... cxb5 {[%clk 0:02:21.8]} 11. Qe2
{[%clk 0:02:32.7]} 11... O-O {[%clk 0:02:18.1]} 12. Qxb5 {[%clk 0:02:31.7]}
12... Bxf2+ {[%clk 0:01:49.5]} 13. Rxf2 {[%clk 0:02:29.2]} 13... Nxf2 {[%clk
0:01:50.4]} 14. Kxf2 {[%clk 0:02:29.2]} 14... Ba6 {[%clk 0:01:39.1]} 15. Qxe5
{[%clk 0:02:24.6]} 15... Kh8 {[%clk 0:01:32.7]} 16. Bg5 {[%clk 0:02:18.9]} 16...
Qd1 {[%clk 0:01:04.5]} 17. Qe4 {[%clk 0:01:57.6]} 17... Nd7 {[%clk 0:00:57.1]}
18. Qc6 {[%clk 0:01:45]} 18... Ne5 {[%clk 0:00:48.3]} 19. Nd2 {[%clk 0:01:15.3]}
19... Qe2+ {[%clk 0:00:40.4]} 20. Kg3 {[%clk 0:01:12.7]} 20... Nxc6 {[%clk
0:00:41.3]} 21. Re1 {[%clk 0:01:08.3]} 21... Qb5 {[%clk 0:00:40.9]} 22. b3
{[%clk 0:01:01.6]} 22... h6 {[%clk 0:00:39.4]} 23. c4 {[%clk 0:01:00.3]} 23...
Qf5 {[%clk 0:00:38.5]} 24. Be3 {[%clk 0:00:58.7]} 24... Rae8 {[%clk 0:00:35.7]}
25. Bf2 {[%clk 0:00:47.6]} 25... Qf4+ {[%clk 0:00:33.3]} 0-1

[Event "Early-Titled-Tuesday-Blitz-May-28-2024"]
[Site "Chess.com"]
[Date "2024.05.28"]
[Round "7"]
[White "Pomegranate988"]
[Black "igorkovalenko"]
[Result "0-1"]
[WhiteElo "2661"]
[BlackElo "2902"]
[TimeControl "180+1"]
[EndTime "9:16:58 PDT"]
[Termination "igorkovalenko won by resignation"]

1. Nf3 {[%clk 0:03:00.9]} 1... Nf6 {[%clk 0:02:59.2]} 2. g3 {[%clk 0:03:01]}
2... d5 {[%clk 0:02:58.2]} 3. Bg2 {[%clk 0:03:01.4]} 3... Bf5 {[%clk 0:02:58.6]}
4. O-O {[%clk 0:02:58.4]} 4... e6 {[%clk 0:02:58.8]} 5. d3 {[%clk 0:02:58.6]}
5... Be7 {[%clk 0:02:56.9]} 6. Nh4 {[%clk 0:02:53.9]} 6... Bg4 {[%clk
0:02:56.4]} 7. f4 {[%clk 0:02:51.9]} 7... Nfd7 {[%clk 0:02:55.7]} 8. Nf3 {[%clk
0:02:49.3]} 8... O-O {[%clk 0:02:54.6]} 9. Nbd2 {[%clk 0:02:47.2]} 9... Nc6
{[%clk 0:02:51.1]} 10. d4 {[%clk 0:02:36.3]} 10... h6 {[%clk 0:02:48.4]} 11. c3
{[%clk 0:02:35.8]} 11... f5 {[%clk 0:02:44.4]} 12. e3 {[%clk 0:02:24.2]} 12...
b5 {[%clk 0:02:42.5]} 13. a4 {[%clk 0:02:22.1]} 13... a6 {[%clk 0:02:42.7]} 14.
Qe2 {[%clk 0:02:21.9]} 14... Na7 {[%clk 0:02:28.2]} 15. h3 {[%clk 0:02:16.2]}
15... Bh5 {[%clk 0:02:28.2]} 16. axb5 {[%clk 0:01:29.6]} 16... axb5 {[%clk
0:02:28.4]} 17. Ra6 {[%clk 0:01:29.6]} 17... Nb6 {[%clk 0:02:28.4]} 18. Qf2
{[%clk 0:01:25.5]} 18... Qc8 {[%clk 0:02:28.1]} 19. Ra1 {[%clk 0:01:24.4]} 19...
c5 {[%clk 0:02:28.3]} 20. Ne5 {[%clk 0:01:23.4]} 20... Nc6 {[%clk 0:02:28.4]}
21. Rxa8 {[%clk 0:01:21.4]} 21... Qxa8 {[%clk 0:02:28.3]} 22. Ndf3 {[%clk
0:01:17.9]} 22... c4 {[%clk 0:02:15.2]} 23. g4 {[%clk 0:01:17.5]} 23... Be8
{[%clk 0:02:12.9]} 24. gxf5 {[%clk 0:01:12.2]} 24... exf5 {[%clk 0:02:11.6]} 25.
Nxc6 {[%clk 0:01:10.3]} 25... Qxc6 {[%clk 0:02:11.3]} 26. Ne5 {[%clk 0:01:11.2]}
26... Qe6 {[%clk 0:02:10.2]} 27. Bf3 {[%clk 0:01:11.1]} 27... Kh7 {[%clk
0:02:09]} 28. Kh2 {[%clk 0:01:10.3]} 28... g5 {[%clk 0:02:07.9]} 29. Rg1 {[%clk
0:01:10.8]} 29... Rg8 {[%clk 0:02:08.1]} 30. Rg2 {[%clk 0:01:09.5]} 30... Nc8
{[%clk 0:01:58]} 31. Qg1 {[%clk 0:01:06.1]} 31... Nd6 {[%clk 0:01:56.9]} 32. Rg3
{[%clk 0:01:03.1]} 32... Ne4 {[%clk 0:01:54.4]} 33. Bxe4 {[%clk 0:01:01.2]}
33... fxe4 {[%clk 0:01:46.9]} 34. Bd2 {[%clk 0:00:52.7]} 34... Bh5 {[%clk
0:01:39.6]} 35. Qf2 {[%clk 0:00:51.1]} 35... Rf8 {[%clk 0:01:35.9]} 36. Qg2
{[%clk 0:00:50.3]} 36... Qf5 {[%clk 0:01:29.8]} 37. Qf2 {[%clk 0:00:48.9]} 37...
gxf4 {[%clk 0:01:25.8]} 38. Qxf4 {[%clk 0:00:48.7]} 38... Qxf4 {[%clk
0:01:26.2]} 39. exf4 {[%clk 0:00:49.6]} 39... Bh4 {[%clk 0:01:21.5]} 40. Rg2
{[%clk 0:00:49.8]} 40... Ra8 {[%clk 0:01:17.3]} 41. Rg1 {[%clk 0:00:46.1]} 41...
Bf2 {[%clk 0:01:13.7]} 42. Rf1 {[%clk 0:00:45.5]} 42... e3 {[%clk 0:01:13.9]}
43. Bc1 {[%clk 0:00:40.3]} 43... e2 {[%clk 0:01:12.8]} 0-1

[Event "Early-Titled-Tuesday-Blitz-May-28-2024"]
[Site "Chess.com"]
[Date "2024.05.28"]
[Round "7"]
[White "EggLoser"]
[Black "aanshnerurkar"]
[Result "1-0"]
[WhiteElo "2305"]
[BlackElo "2470"]
[TimeControl "180+1"]
[EndTime "9:16:58 PDT"]
[Termination "EggLoser won by resignation"]

1. e4 {[%clk 0:03:00.9]} 1... c5 {[%clk 0:02:59.7]} 2. Nf3 {[%clk 0:03:01]} 2...
d6 {[%clk 0:02:58.9]} 3. d4 {[%clk 0:03:01.3]} 3... cxd4 {[%clk 0:02:58.6]} 4.
Nxd4 {[%clk 0:03:02.2]} 4... Nf6 {[%clk 0:02:59.1]} 5. Nc3 {[%clk 0:03:02.8]}
5... g6 {[%clk 0:02:59.4]} 6. f3 {[%clk 0:03:01.7]} 6... Bg7 {[%clk 0:02:59.7]}
7. Be3 {[%clk 0:03:02.3]} 7... O-O {[%clk 0:02:59.5]} 8. Bc4 {[%clk 0:03:02.9]}
8... Nc6 {[%clk 0:02:59.6]} 9. Qd2 {[%clk 0:03:02.7]} 9... Bd7 {[%clk 0:03:00]}
10. O-O-O {[%clk 0:03:01.2]} 10... Ne5 {[%clk 0:03:00.1]} 11. Bb3 {[%clk
0:03:00.8]} 11... Rc8 {[%clk 0:03:00.4]} 12. h4 {[%clk 0:02:59]} 12... Nc4
{[%clk 0:03:00.2]} 13. Bxc4 {[%clk 0:02:58]} 13... Rxc4 {[%clk 0:02:59.7]} 14.
g4 {[%clk 0:02:58.3]} 14... b5 {[%clk 0:02:58.9]} 15. Ndxb5 {[%clk 0:02:46.6]}
15... Bxb5 {[%clk 0:02:38.2]} 16. Nxb5 {[%clk 0:02:47.5]} 16... Qb8 {[%clk
0:02:38]} 17. Nd4 {[%clk 0:02:41]} 17... Rfc8 {[%clk 0:02:35.7]} 18. c3 {[%clk
0:02:29.9]} 18... Nd7 {[%clk 0:02:03.1]} 19. Nb3 {[%clk 0:02:07.9]} 19... a5
{[%clk 0:01:54]} 20. Bd4 {[%clk 0:01:14]} 20... a4 {[%clk 0:01:38.2]} 21. Bxg7
{[%clk 0:01:13]} 21... axb3 {[%clk 0:01:24.4]} 22. axb3 {[%clk 0:01:12.8]} 22...
Qxb3 {[%clk 0:01:23.7]} 23. Bd4 {[%clk 0:00:43]} 23... e5 {[%clk 0:01:18.3]} 24.
Bf2 {[%clk 0:00:25.6]} 24... Rxc3+ {[%clk 0:01:15.3]} 25. bxc3 {[%clk
0:00:26.1]} 25... Rc6 {[%clk 0:01:15.3]} 26. Qb2 {[%clk 0:00:23.2]} 26... Rxc3+
{[%clk 0:01:13.7]} 27. Kb1 {[%clk 0:00:23.5]} 27... Qxb2+ {[%clk 0:01:12]} 28.
Kxb2 {[%clk 0:00:24.4]} 28... Rxf3 {[%clk 0:01:11.7]} 29. Rhf1 {[%clk
0:00:20.8]} 29... Nc5 {[%clk 0:01:09.8]} 30. Bxc5 {[%clk 0:00:19]} 30... Rxf1
{[%clk 0:01:09]} 31. Rxf1 {[%clk 0:00:19.9]} 31... dxc5 {[%clk 0:01:09.6]} 32.
Kc3 {[%clk 0:00:20.5]} 1-0

[Event "Early-Titled-Tuesday-Blitz-May-28-2024"]
[Site "Chess.com"]
[Date "2024.05.28"]
[Round "7"]
[White "Konavets"]
[Black "Thunderbolt135"]
[Result "1-0"]
[WhiteElo "3074"]
[BlackElo "2876"]
[TimeControl "180+1"]
[EndTime "9:17:03 PDT"]
[Termination "Konavets won by resignation"]

1. e4 {[%clk 0:03:00.9]} 1... c5 {[%clk 0:03:00.3]} 2. Nf3 {[%clk 0:03:01.1]}
2... e6 {[%clk 0:03:01]} 3. d4 {[%clk 0:03:01.9]} 3... cxd4 {[%clk 0:03:01.9]}
4. Bg5 {[%clk 0:03:02.1]} 4... Qc7 {[%clk 0:02:57.1]} 5. Nxd4 {[%clk 0:03:01.4]}
5... a6 {[%clk 0:02:53.2]} 6. Nc3 {[%clk 0:03:01.4]} 6... b5 {[%clk 0:02:52]} 7.
Qd3 {[%clk 0:03:01.7]} 7... Bb7 {[%clk 0:02:50.5]} 8. O-O-O {[%clk 0:03:02.2]}
8... h6 {[%clk 0:02:42.2]} 9. Be3 {[%clk 0:02:56.1]} 9... Nc6 {[%clk 0:02:41.2]}
10. Nxc6 {[%clk 0:02:55.7]} 10... Bxc6 {[%clk 0:02:42.1]} 11. Kb1 {[%clk
0:02:54.6]} 11... Nf6 {[%clk 0:02:40.3]} 12. Bd4 {[%clk 0:02:49.7]} 12... b4
{[%clk 0:02:20.6]} 13. e5 {[%clk 0:02:50.1]} 13... Ng4 {[%clk 0:01:48.8]} 14.
Ne2 {[%clk 0:02:49.6]} 14... Nxe5 {[%clk 0:01:42.7]} 15. Qg3 {[%clk 0:02:49.9]}
15... d6 {[%clk 0:01:43.3]} 16. Nf4 {[%clk 0:02:50.3]} 16... Be4 {[%clk
0:01:28.8]} 17. Bd3 {[%clk 0:02:49]} 17... Bxd3 {[%clk 0:00:45.7]} 18. cxd3
{[%clk 0:02:49.9]} 18... Qd7 {[%clk 0:00:46]} 19. Nh5 {[%clk 0:02:45.8]} 19...
f6 {[%clk 0:00:32.5]} 20. f4 {[%clk 0:02:39.4]} 20... Nc6 {[%clk 0:00:21]} 21.
Bxf6 {[%clk 0:02:39]} 21... Qf7 {[%clk 0:00:21.6]} 22. Qf3 {[%clk 0:02:37]}
22... Rc8 {[%clk 0:00:18.6]} 23. Rc1 {[%clk 0:02:37.1]} 23... Kd7 {[%clk
0:00:19.2]} 24. Bd4 {[%clk 0:02:25.1]} 24... Be7 {[%clk 0:00:08.4]} 25. g4
{[%clk 0:02:11.5]} 25... Rhg8 {[%clk 0:00:07.8]} 26. Bf2 {[%clk 0:02:03.4]}
26... g6 {[%clk 0:00:08.1]} 27. Ng3 {[%clk 0:02:03.7]} 27... Rgf8 {[%clk
0:00:08.8]} 28. Ne2 {[%clk 0:02:02.5]} 28... g5 {[%clk 0:00:06.6]} 29. Rhe1
{[%clk 0:02:01.4]} 29... e5 {[%clk 0:00:03.6]} 30. f5 {[%clk 0:01:59]} 30... a5
{[%clk 0:00:04.1]} 31. d4 {[%clk 0:01:56]} 31... Bf6 {[%clk 0:00:03.1]} 32. Ng3
{[%clk 0:01:47.2]} 32... exd4 {[%clk 0:00:01.9]} 33. Re6 {[%clk 0:01:48.1]}
33... Be5 {[%clk 0:00:01.5]} 34. Qd5 {[%clk 0:01:46.5]} 34... Rc7 {[%clk
0:00:01]} 35. Ne4 {[%clk 0:01:45.6]} 35... Rfc8 {[%clk 0:00:01.9]} 36. Nxd6
{[%clk 0:01:33.7]} 36... Qf8 {[%clk 0:00:01.4]} 1-0

[Event "Early-Titled-Tuesday-Blitz-May-28-2024"]
[Site "Chess.com"]
[Date "2024.05.28"]
[Round "7"]
[White "chrisclaireredfield"]
[Black "LuisFSiles"]
[Result "1-0"]
[WhiteElo "2558"]
[BlackElo "2382"]
[TimeControl "180+1"]
[EndTime "9:17:03 PDT"]
[Termination "chrisclaireredfield won by resignation"]

1. Nf3 {[%clk 0:03:00.9]} 1... Nf6 {[%clk 0:02:59.3]} 2. g3 {[%clk 0:03:00.9]}
2... g6 {[%clk 0:02:59.6]} 3. Bg2 {[%clk 0:03:01.1]} 3... Bg7 {[%clk 0:03:00.1]}
4. O-O {[%clk 0:03:01.2]} 4... O-O {[%clk 0:03:00.6]} 5. d4 {[%clk 0:03:01.3]}
5... d6 {[%clk 0:02:59.7]} 6. b3 {[%clk 0:03:01.7]} 6... c6 {[%clk 0:02:51.8]}
7. Bb2 {[%clk 0:03:01.8]} 7... Qa5 {[%clk 0:02:49.1]} 8. Nbd2 {[%clk 0:02:56.4]}
8... Qh5 {[%clk 0:02:43.7]} 9. e4 {[%clk 0:02:52.4]} 9... Bh3 {[%clk 0:02:42.8]}
10. Re1 {[%clk 0:02:49.1]} 10... Ng4 {[%clk 0:02:42.4]} 11. Nf1 {[%clk
0:02:39.4]} 11... Nd7 {[%clk 0:02:39.7]} 12. Bxh3 {[%clk 0:02:29.1]} 12... Qxh3
{[%clk 0:02:38.7]} 13. Ng5 {[%clk 0:02:29.3]} 13... Qh5 {[%clk 0:02:38.8]} 14.
f4 {[%clk 0:02:20.8]} 14... h6 {[%clk 0:02:28.4]} 15. Nf3 {[%clk 0:02:20.2]}
15... Qh3 {[%clk 0:02:18.2]} 16. Qd2 {[%clk 0:02:16.6]} 16... Rad8 {[%clk
0:02:11.8]} 17. Rad1 {[%clk 0:02:14.6]} 17... e5 {[%clk 0:02:11.1]} 18. Qg2
{[%clk 0:02:00.1]} 18... Qxg2+ {[%clk 0:02:04.7]} 19. Kxg2 {[%clk 0:02:00.1]}
19... exf4 {[%clk 0:01:49.9]} 20. gxf4 {[%clk 0:01:59.9]} 20... f5 {[%clk
0:01:48.1]} 21. e5 {[%clk 0:01:58.6]} 21... dxe5 {[%clk 0:01:45.1]} 22. dxe5
{[%clk 0:01:56.2]} 22... Nc5 {[%clk 0:01:23.3]} 23. h3 {[%clk 0:01:53.6]} 23...
Ne6 {[%clk 0:01:22.1]} 24. Kg3 {[%clk 0:01:42.3]} 24... h5 {[%clk 0:01:14.1]}
25. hxg4 {[%clk 0:01:41.7]} 25... fxg4 {[%clk 0:01:12.7]} 26. Rxd8 {[%clk
0:01:30.4]} 26... Rxd8 {[%clk 0:01:03.2]} 27. Ng5 {[%clk 0:01:26.5]} 27... Nd4
{[%clk 0:00:52]} 28. Bxd4 {[%clk 0:01:23.2]} 28... Rxd4 {[%clk 0:00:51.8]} 29.
Ne6 {[%clk 0:01:20.6]} 29... Rd5 {[%clk 0:00:45.1]} 30. Nxg7 {[%clk 0:01:19.8]}
30... Kxg7 {[%clk 0:00:45.5]} 31. Kh4 {[%clk 0:01:15.8]} 31... Kh6 {[%clk
0:00:41.5]} 32. e6 {[%clk 0:01:14.6]} 32... Rc5 {[%clk 0:00:38.1]} 33. e7 {[%clk
0:01:12.2]} 33... Rc3 {[%clk 0:00:38.2]} 34. Ng3 {[%clk 0:01:07.4]} 34... Rxc2
{[%clk 0:00:37.1]} 35. Re2 {[%clk 0:01:02.4]} 1-0

[Event "Early-Titled-Tuesday-Blitz-May-28-2024"]
[Site "Chess.com"]
[Date "2024.05.28"]
[Round "7"]
[White "Yaacovn"]
[Black "vishwa_vijeta"]
[Result "0-1"]
[WhiteElo "2857"]
[BlackElo "2644"]
[TimeControl "180+1"]
[EndTime "9:17:06 PDT"]
[Termination "vishwa_vijeta won by resignation"]

1. d4 {[%clk 0:03:00.9]} 1... Nf6 {[%clk 0:02:52.8]} 2. e3 {[%clk 0:02:59.7]}
2... d5 {[%clk 0:02:49.4]} 3. Bd3 {[%clk 0:02:59.1]} 3... g6 {[%clk 0:02:48.7]}
4. Nf3 {[%clk 0:02:58.1]} 4... Bg7 {[%clk 0:02:49.1]} 5. h3 {[%clk 0:02:58.5]}
5... O-O {[%clk 0:02:49.4]} 6. O-O {[%clk 0:02:55.3]} 6... b6 {[%clk 0:02:49.1]}
7. b3 {[%clk 0:02:50.3]} 7... c5 {[%clk 0:02:44.9]} 8. Bb2 {[%clk 0:02:49.5]}
8... Bb7 {[%clk 0:02:40.3]} 9. Be2 {[%clk 0:02:46.4]} 9... Nbd7 {[%clk
0:02:39.1]} 10. Nbd2 {[%clk 0:02:44.4]} 10... Rc8 {[%clk 0:02:37.7]} 11. Rc1
{[%clk 0:02:42.3]} 11... Ne4 {[%clk 0:02:34.2]} 12. c3 {[%clk 0:02:23.8]} 12...
Nxd2 {[%clk 0:02:25.9]} 13. Qxd2 {[%clk 0:02:22.5]} 13... e5 {[%clk 0:02:25.8]}
14. dxe5 {[%clk 0:02:20.2]} 14... Nxe5 {[%clk 0:02:26.1]} 15. Rfd1 {[%clk
0:02:18.7]} 15... Qe7 {[%clk 0:02:18.6]} 16. c4 {[%clk 0:02:12.7]} 16... Rcd8
{[%clk 0:02:12.5]} 17. Nxe5 {[%clk 0:02:07.9]} 17... Bxe5 {[%clk 0:02:09.5]} 18.
Bxe5 {[%clk 0:02:07.4]} 18... Qxe5 {[%clk 0:02:09.5]} 19. Bf3 {[%clk 0:02:04]}
19... dxc4 {[%clk 0:01:52.7]} 20. Qxd8 {[%clk 0:01:50.5]} 20... Bxf3 {[%clk
0:01:29.8]} 21. gxf3 {[%clk 0:01:10.3]} 21... Rxd8 {[%clk 0:01:28.3]} 22. Rxd8+
{[%clk 0:01:10]} 22... Kg7 {[%clk 0:01:28.7]} 23. Rcd1 {[%clk 0:00:55.9]} 23...
c3 {[%clk 0:01:03.2]} 24. f4 {[%clk 0:00:17.5]} 24... Qf6 {[%clk 0:01:01.6]} 25.
R8d6 {[%clk 0:00:04.5]} 25... c2 {[%clk 0:00:59.4]} 0-1

[Event "Early-Titled-Tuesday-Blitz-May-28-2024"]
[Site "Chess.com"]
[Date "2024.05.28"]
[Round "7"]
[White "AnaKuchava"]
[Black "Balla_Tamas"]
[Result "1-0"]
[WhiteElo "2209"]
[BlackElo "2454"]
[TimeControl "180+1"]
[EndTime "9:17:10 PDT"]
[Termination "AnaKuchava won by resignation"]

1. d4 {[%clk 0:02:58.8]} 1... d5 {[%clk 0:02:59.9]} 2. Nf3 {[%clk 0:02:55.6]}
2... Nf6 {[%clk 0:02:59.3]} 3. c4 {[%clk 0:02:54.5]} 3... e6 {[%clk 0:02:59.3]}
4. Nc3 {[%clk 0:02:53.8]} 4... c5 {[%clk 0:02:59.4]} 5. Bg5 {[%clk 0:02:53.5]}
5... Be7 {[%clk 0:02:48.9]} 6. dxc5 {[%clk 0:02:44.7]} 6... Nc6 {[%clk
0:02:31.9]} 7. e3 {[%clk 0:02:41.9]} 7... O-O {[%clk 0:02:28]} 8. Be2 {[%clk
0:02:29.2]} 8... Bxc5 {[%clk 0:02:19.3]} 9. O-O {[%clk 0:02:27.2]} 9... Be7
{[%clk 0:02:19.1]} 10. cxd5 {[%clk 0:02:15.5]} 10... exd5 {[%clk 0:02:15.9]} 11.
Bxf6 {[%clk 0:01:55.8]} 11... Bxf6 {[%clk 0:02:05.8]} 12. Qxd5 {[%clk
0:01:56.3]} 12... Be6 {[%clk 0:01:35]} 13. Qxd8 {[%clk 0:01:50.8]} 13... Rfxd8
{[%clk 0:01:35.9]} 14. Rfd1 {[%clk 0:01:51.2]} 14... a6 {[%clk 0:01:33.8]} 15.
h3 {[%clk 0:01:44.4]} 15... h6 {[%clk 0:01:33.6]} 16. Kf1 {[%clk 0:01:40.2]}
16... Rac8 {[%clk 0:01:30.8]} 17. Ke1 {[%clk 0:01:39.8]} 17... Nb4 {[%clk
0:01:28.5]} 18. Rxd8+ {[%clk 0:01:37.3]} 18... Rxd8 {[%clk 0:01:28.6]} 19. Rc1
{[%clk 0:01:34.9]} 19... Bxa2 {[%clk 0:01:14.5]} 20. Nxa2 {[%clk 0:01:32]} 20...
Nxa2 {[%clk 0:01:15.4]} 21. Rc7 {[%clk 0:01:30.7]} 21... b5 {[%clk 0:01:11.3]}
22. b3 {[%clk 0:01:27.6]} 22... Nb4 {[%clk 0:01:10.4]} 23. Bd1 {[%clk
0:01:26.5]} 23... Nd3+ {[%clk 0:01:02.9]} 24. Ke2 {[%clk 0:01:25.1]} 24... Nxf2
{[%clk 0:00:56.4]} 25. Bc2 {[%clk 0:01:19.9]} 25... Nh1 {[%clk 0:00:49.6]} 26.
Ra7 {[%clk 0:01:00.6]} 26... Ng3+ {[%clk 0:00:41.6]} 27. Kf2 {[%clk 0:01:00.2]}
27... Rc8 {[%clk 0:00:25.4]} 28. Bd3 {[%clk 0:00:47.9]} 28... Rc3 {[%clk
0:00:24.6]} 29. Ra8+ {[%clk 0:00:44.2]} 1-0

[Event "Early-Titled-Tuesday-Blitz-May-28-2024"]
[Site "Chess.com"]
[Date "2024.05.28"]
[Round "7"]
[White "mr_gustavo"]
[Black "Kumi29"]
[Result "1-0"]
[WhiteElo "2730"]
[BlackElo "2577"]
[TimeControl "180+1"]
[EndTime "9:17:15 PDT"]
[Termination "mr_gustavo won by resignation"]

1. Nf3 {[%clk 0:03:00.9]} 1... d5 {[%clk 0:02:59.2]} 2. g3 {[%clk 0:02:56.8]}
2... Bf5 {[%clk 0:02:57.9]} 3. Bg2 {[%clk 0:02:56.4]} 3... h6 {[%clk 0:02:58.1]}
4. O-O {[%clk 0:02:50]} 4... Nf6 {[%clk 0:02:58.2]} 5. d3 {[%clk 0:02:42]} 5...
Nbd7 {[%clk 0:02:58.4]} 6. Nbd2 {[%clk 0:02:40.7]} 6... e5 {[%clk 0:02:58.2]} 7.
e4 {[%clk 0:02:31.6]} 7... dxe4 {[%clk 0:02:55.3]} 8. Nh4 {[%clk 0:02:30.5]}
8... Bh7 {[%clk 0:02:52]} 9. dxe4 {[%clk 0:02:26.9]} 9... Bc5 {[%clk 0:02:42.5]}
10. Qe2 {[%clk 0:02:18.6]} 10... Qe7 {[%clk 0:02:33.4]} 11. c3 {[%clk
0:02:12.5]} 11... O-O-O {[%clk 0:02:31.1]} 12. Nb3 {[%clk 0:02:03.3]} 12... Bb6
{[%clk 0:02:29.8]} 13. a4 {[%clk 0:02:02.5]} 13... Nc5 {[%clk 0:02:27.5]} 14. a5
{[%clk 0:01:54.5]} 14... Nxb3 {[%clk 0:02:24.3]} 15. axb6 {[%clk 0:01:53.9]}
15... Nxa1 {[%clk 0:02:18.3]} 16. bxa7 {[%clk 0:01:53.9]} 16... Kd7 {[%clk
0:02:18.8]} 17. Qb5+ {[%clk 0:01:54.4]} 17... c6 {[%clk 0:01:49.6]} 18. Qxb7+
{[%clk 0:01:53.1]} 18... Kd6 {[%clk 0:01:49.8]} 19. Rd1+ {[%clk 0:01:50.1]}
19... Nd5 {[%clk 0:01:49.9]} 20. Rxd5+ {[%clk 0:01:26.2]} 20... cxd5 {[%clk
0:01:48.2]} 21. Qb6+ {[%clk 0:01:24.9]} 21... Kd7 {[%clk 0:01:46.9]} 22. Bh3+
{[%clk 0:01:25.1]} 22... f5 {[%clk 0:01:06.4]} 23. Nxf5 {[%clk 0:01:24.6]} 23...
Bxf5 {[%clk 0:01:04.5]} 24. Bxf5+ {[%clk 0:01:23.9]} 24... Ke8 {[%clk 0:01:05]}
25. Qc6+ {[%clk 0:01:19.5]} 25... Kf8 {[%clk 0:00:51.5]} 26. a8=Q {[%clk
0:01:18.2]} 26... Nb3 {[%clk 0:00:45.8]} 27. Qab7 {[%clk 0:01:03]} 27... Nxc1
{[%clk 0:00:40.6]} 28. exd5 {[%clk 0:00:58.4]} 28... e4 {[%clk 0:00:25]} 29.
Qxe7+ {[%clk 0:00:49.1]} 29... Kxe7 {[%clk 0:00:25.2]} 30. Qe6+ {[%clk
0:00:49.9]} 30... Kf8 {[%clk 0:00:25.5]} 31. Bg6 {[%clk 0:00:50.8]} 1-0